[Event "94th Paris-ch  2019"]
[Site "Paris"]
[Date "2019.07.11"]
[Round "5.19"]
[White "Smith, Matthieu"]
[Black "Vardaan Nagpal"]
[Result "0-1"]
[ECO "B52"]
[WhiteElo "2208"]
[BlackElo "2355"]
[Annotator "ChessBase"]
[PlyCount "99"]
[EventDate "2019.07.07"]
[EventType "swiss"]
[EventCountry "FRA"]
[SourceTitle "playchess.com"]
[Source "ChessBase"]
[SourceQuality "1"]
[TimeControl "5400+30"]

1. e4 {[%emt 0:52:35]} c5 {[%emt 0:01:16]} 2. Nf3 {[%emt 0:00:07]} d6 {[%emt 0:01:42]} 3. Bb5+ {[%emt 0:00:11]} Bd7 {[%emt 0:00:17]} 4. Bxd7+ {[%emt 0:00:09]} Nxd7 {[%emt 0:00:39]} 5. O-O {[%emt 0:00:14]} Ngf6 {[%emt 0:00:12]} 6. Re1 {[%emt 0:00:08]} Rc8 {[%emt 0:01:23]} 7. c3 {[%emt 0:00:12]} e6 {[%emt 0:01:25]} 8. d4 {[%emt 0:00:11]} cxd4 {[%emt 0:04:41]} 9. cxd4 {[%emt 0:00:03]} Be7 {[%emt 0:01:08]} 10. Nc3 {[%emt 0:04:31]} O-O {[%emt 0:06:01]} 11. Bf4 {[%emt 0:01:01]} Nb6 {[%emt 0:04:09]} 12. Qb3 {[%emt 0:11:44]} d5 {[%emt 0:04:09]} 13. e5 {[%emt 0:01:26]} Nfd7 {[%emt 0:01:04]} 14. Rec1 {[%emt 0:16:18]} Nb8 {[%emt 0:02:26]} 15. a4 {[%emt 0:13:44]} Nc6 {[%emt 0:02:56]} 16. Qd1 {[%emt 0:02:12]} Nc4 {[%emt 0:06:37]} 17. b3 {[%emt 0:06:03]} N4a5 {[%emt 0:00:26]} 18. Ne2 {[%emt 0:00:13]} Qb6 {[%emt 0:00:54]} 19. Rc3 {[%emt 0:02:01]} Nb4 {[%emt 0:03:08]} 20. Bd2 {[%emt 0:08:21]} Rxc3 {[%emt 0:03:28]} 21. Bxc3 {[%emt 0:00:04]} Rc8 {[%emt 0:01:09]} 22. h4 {[%emt 0:02:02]} Qa6 {[%emt 0:06:00]} 23. g3 {[%emt 0:03:06]} Nac6 {[%emt 0:12:54]} 24. Kg2 {[%emt 0:05:03]} Qd3 {[%emt 0:02:46]} 25. Qxd3 {[%emt 0:00:16]} Nxd3 {[%emt 0:00:06]} 26. Rd1 {[%emt 0:00:03]} Ndb4 {[%emt 0:01:32]} 27. Ne1 {[%emt 0:05:35]} Na2 {[%emt 0:01:37]} 28. Bd2 {[%emt 0:01:13]} Bb4 {[%emt 0:04:23]} 29. Nd3 {[%emt 0:00:24]} Bxd2 {[%emt 0:00:17]} 30. Rxd2 {[%emt 0:00:01]} Ncb4 {[%emt 0:01:41]} 31. Nxb4 {[%emt 0:06:01]} Nxb4 {[%emt 0:00:11]} 32. Kf3 {[%emt 0:00:03]} Kf8 {[%emt 0:02:07]} 33. Ke3 {[%emt 0:01:05]} Ke7 {[%emt 0:00:28]} 34. Rd1 {[%emt 0:02:11]} Kd7 {[%emt 0:05:05]} 35. Rc1 {[%emt 0:02:01]} Rxc1 {[%emt 0:00:35]} 36. Nxc1 {[%emt 0:00:01]} a5 {[%emt 0:04:27]} 37. Kd2 {[%emt 0:00:05]} h5 {[%emt 0:01:46]} 38. Ne2 {[%emt 0:00:05]} g6 {[%emt 0:00:41]} 39. f3 {[%emt 0:00:02]} Nc6 {[%emt 0:01:10]} 40. Ke3 {[%emt 0:00:38]} Ke7 {[%emt 0:00:13]} 41. Nc3 {[%emt 0:00:49]} f6 {[%emt 0:01:23]} 42. exf6+ {[%emt 0:02:05]} Kxf6 {[%emt 0:00:04]} 43. g4 {[%emt 0:00:03]} g5 {[%emt 0:02:50]} 44. hxg5+ {[%emt 0:01:19]} Kxg5 {[%emt 0:00:03]} 45. gxh5 {[%emt 0:00:04]} Kxh5 {[%emt 0:00:05]} 46. Nb5 {[%emt 0:00:15]} Kg5 {[%emt 0:00:24]} 47. Nd6 {[%emt 0:00:40]} Nd8 {[%emt 0:00:09]} 48. Nc8 {[%emt 0:01:32]} Kf6 {[%emt 0:02:36]} 49. Nd6 {[%emt 0:00:45]} Ke7 {[%emt 0:01:17]} 50. Nb5 {[%emt 0:00:09]} 0-1

[Event "94th Paris-ch  2019"]
[Site "Paris"]
[Date "2019.07.10"]
[Round "5.21"]
[White "Douriet Duany, Alexis"]
[Black "Eden, James"]
[Result "0-1"]
[ECO "D00"]
[WhiteElo "2247"]
[BlackElo "2343"]
[Annotator "RC"]
[PlyCount "52"]
[EventDate "2019.07.07"]
[EventType "swiss"]
[EventCountry "FRA"]
[SourceTitle "playchess.com"]
[Source "ChessBase"]
[SourceQuality "1"]
[TimeControl "5400+30"]

1. d4 d5 2. Bg5 Nf6 3. Nd2 Bf5 4. Bxf6 exf6 5. e3 Bd6 6. Ngf3 O-O 7. Nh4 Be6 8. Bd3 g6 9. Qf3 f5 10. g3 c5 11. dxc5 Bxc5 12. Nb3 d4 13. O-O-O Bxb3 14. axb3 Nc6 15. exd4 Nxd4 16. Qxb7 a5 17. Bc4 a4 18. b4 a3 19. bxa3 Bb6 20. Kb2 Qf6 21. c3 Ra7 22. Qd5 Rd8 23. Rxd4 Bxd4 24. Qf3 Bxc3+ 25. Kb3 Ba1 26. Rb1 Rd2 0-1

[Event "94th Paris-ch  2019"]
[Site "Paris"]
[Date "2019.07.11"]
[Round "6.1"]
[White "Moussard, Jules"]
[Black "Samoun, Florent"]
[Result "1-0"]
[ECO "C15"]
[WhiteElo "2576"]
[BlackElo "2230"]
[Annotator "RC"]
[PlyCount "67"]
[EventDate "2019.07.07"]
[EventType "swiss"]
[EventCountry "FRA"]
[SourceTitle "playchess.com"]
[Source "ChessBase"]
[SourceQuality "1"]
[TimeControl "5400+30"]

1. e4 {[%emt 0:01:42]} e6 {[%emt 0:00:02]} 2. d4 {[%emt 0:01:13]} d5 {[%emt 0:00:11]} 3. Nc3 {[%emt 0:00:05]} Bb4 {[%emt 0:02:14]} 4. a3 {[%emt 0:00:44]} Bxc3+ {[%emt 0:01:27]} 5. bxc3 {[%emt 0:00:06]} dxe4 {[%emt 0:03:40]} 6. Qg4 {[%emt 0:02:46]} Nf6 {[%emt 0:06:17]} 7. Qxg7 {[%emt 0:00:06]} Rg8 {[%emt 0:00:09]} 8. Qh6 {[%emt 0:00:05]} c5 {[%emt 0:01:10]} 9. Ne2 {[%emt 0:03:02]} Nc6 {[%emt 0:02:45]} 10. Qe3 {[%emt 0:15:30]} Rg4 {[%emt 0:13:26]} 11. h3 {[%emt 0:10:01]} Nd5 {[%emt 0:05:05]} 12. Qd2 {[%emt 0:00:14]} Rg8 {[%emt 0:04:06]} 13. Rb1 {[%emt 0:05:19]} e5 {[%emt 0:22:47]} 14. dxc5 {[%emt 0:06:31]} Be6 {[%emt 0:02:30]} 15. c4 {[%emt 0:03:37]} e3 {[%emt 0:09:43]} 16. fxe3 {[%emt 0:01:37]} Qh4+ {[%emt 0:01:55]} 17. g3 {[%emt 0:00:05]} Qxc4 {[%emt 0:02:02]} 18. Nf4 {[%emt 0:01:51]} Qa2 {[%emt 0:05:38]} 19. Rb2 {[%emt 0:02:27]} Qa1 {[%emt 0:00:26]} 20. Nxe6 {[%emt 0:05:21]} fxe6 {[%emt 0:00:10]} 21. c4 {[%emt 0:24:45]} Nxe3 {[%emt 0:03:33]} 22. Be2 {[%emt 0:00:02]} Nd4 {[%emt 0:08:17]} 23. Bh5+ {[%emt 0:01:16]} Kd8 {[%emt 0:01:53]} 24. Qxe3 {[%emt 0:00:35]} Rxg3 {[%emt 0:01:59]} 25. Qh6 {[%emt 0:00:26]} Kc7 {[%emt 0:00:33]} 26. Qxh7+ {[%emt 0:00:50]} Kc6 {[%emt 0:00:28]} 27. Qxb7+ {[%emt 0:00:32]} Kxc5 {[%emt 0:00:05]} 28. Qc7+ {[%emt 0:00:19]} Nc6 {[%emt 0:00:07]} 29. Rb5+ {[%emt 0:00:03]} Kd4 {[%emt 0:00:24]} 30. Qd6+ {[%emt 0:00:04]} Ke4 {[%emt 0:00:31]} 31. Qxc6+ {[%emt 0:00:03]} Kd3 {[%emt 0:00:07]} 32. Qd6+ {[%emt 0:02:06]} Ke4 {[%emt 0:01:04]} 33. Kf2 {[%emt 0:00:14]} Rf8+ {[%emt 0:01:14]} 34. Qxf8 {[%emt 0:00:19] Kd5} 1-0

[Event "94th Paris-ch  2019"]
[Site "Paris"]
[Date "2019.07.11"]
[Round "6.3"]
[White "Shchekachev, Andrei"]
[Black "Stephan, Victor"]
[Result "1-0"]
[ECO "D34"]
[WhiteElo "2531"]
[BlackElo "2358"]
[Annotator "ChessBase"]
[PlyCount "159"]
[EventDate "2019.07.07"]
[EventType "swiss"]
[EventCountry "FRA"]
[SourceTitle "playchess.com"]
[Source "ChessBase"]
[SourceQuality "1"]
[TimeControl "5400+30"]

1. c4 {[%emt 0:00:00]} e6 {[%emt 0:01:37]} 2. g3 {[%emt 0:01:26]} d5 {[%emt 0:00:36]} 3. Bg2 {[%emt 0:00:35]} Nf6 {[%emt 0:01:01]} 4. Nf3 {[%emt 0:00:27]} c5 {[%emt 0:01:27]} 5. cxd5 {[%emt 0:01:34]} exd5 {[%emt 0:00:52]} 6. d4 {[%emt 0:01:09]} Nc6 {[%emt 0:00:19]} 7. O-O {[%emt 0:00:36]} Be7 {[%emt 0:00:20]} 8. dxc5 {[%emt 0:02:48]} Bxc5 {[%emt 0:02:10]} 9. Nc3 {[%emt 0:00:15]} O-O {[%emt 0:00:33]} 10. Na4 {[%emt 0:00:12]} Be7 {[%emt 0:05:07]} 11. Be3 {[%emt 0:03:01]} Bg4 {[%emt 0:04:05]} 12. Rc1 {[%emt 0:05:03]} Re8 {[%emt 0:02:57]} 13. Nc3 {[%emt 0:16:40]} Qd7 {[%emt 0:05:25]} 14. Qa4 {[%emt 0:02:48]} Bh3 {[%emt 0:05:51]} 15. Rfd1 {[%emt 0:01:18]} Bxg2 {[%emt 0:00:25]} 16. Kxg2 {[%emt 0:00:06]} Rad8 {[%emt 0:03:54]} 17. Qb5 {[%emt 0:10:20]} h6 {[%emt 0:07:05]} 18. a3 {[%emt 0:07:04]} b6 {[%emt 0:07:58]} 19. Bd4 {[%emt 0:11:09]} Nxd4 {[%emt 0:03:38]} 20. Qxd7 {[%emt 0:00:18]} Rxd7 {[%emt 0:00:34]} 21. Nxd4 {[%emt 0:00:14]} Bc5 {[%emt 0:04:34]} 22. e3 {[%emt 0:01:07]} Ne4 {[%emt 0:05:53]} 23. Nce2 {[%emt 0:09:38]} Kf8 {[%emt 0:03:24]} 24. Rc2 {[%emt 0:03:41]} Bxd4 {[%emt 0:02:46]} 25. Nxd4 {[%emt 0:02:46]} Nc5 {[%emt 0:01:50]} 26. Nc6 {[%emt 0:02:53]} Ne4 {[%emt 0:06:45]} 27. b4 {[%emt 0:02:26]} Nf6 {[%emt 0:02:27]} 28. b5 {[%emt 0:01:03]} Rc8 {[%emt 0:01:36]} 29. Rd4 {[%emt 0:01:15]} Rdc7 {[%emt 0:02:33]} 30. Ra4 {[%emt 0:01:22]} Ne4 {[%emt 0:00:32]} 31. Rb2 {[%emt 0:02:56]} a5 {[%emt 0:03:25]} 32. Rd4 {[%emt 0:00:14]} Nf6 {[%emt 0:01:05]} 33. f3 {[%emt 0:01:39]} Rd7 {[%emt 0:02:44]} 34. Rbd2 {[%emt 0:01:26]} Rdc7 {[%emt 0:01:44]} 35. g4 {[%emt 0:00:44]} Re8 {[%emt 0:01:24]} 36. Kf2 {[%emt 0:00:50]} g5 {[%emt 0:00:49]} 37. R4d3 {[%emt 0:00:15]} Rec8 {[%emt 0:01:03]} 38. Kg3 {[%emt 0:00:26]} Re8 {[%emt 0:02:22]} 39. h4 {[%emt 0:00:19]} gxh4+ {[%emt 0:01:15]} 40. Kxh4 {[%emt 0:00:09]} Kg7 {[%emt 0:00:15]} 41. Kg3 {[%emt 0:01:04]} Kg6 {[%emt 0:00:27]} 42. Kf4 {[%emt 0:00:56]} Re6 {[%emt 0:01:43]} 43. Rc2 {[%emt 0:00:46]} Kg7 {[%emt 0:00:50]} 44. Rdd2 {[%emt 0:00:22]} Re8 {[%emt 0:00:37]} 45. Rh2 {[%emt 0:02:08]} Ng8 {[%emt 0:01:56]} 46. Nd4 {[%emt 0:00:30]} Rc4 {[%emt 0:01:05]} 47. Rxc4 {[%emt 0:00:45]} dxc4 {[%emt 0:00:02]} 48. Nf5+ {[%emt 0:01:00]} Kf6 {[%emt 0:01:17]} 49. Rc2 {[%emt 0:02:22]} Rc8 {[%emt 0:01:34]} 50. Nd6 {[%emt 0:01:21]} Rd8 {[%emt 0:00:19]} 51. Nxc4 {[%emt 0:00:16]} Ne7 {[%emt 0:00:08]} 52. Nxb6 {[%emt 0:00:44]} Ke6 {[%emt 0:00:06]} 53. a4 {[%emt 0:00:46]} Rb8 {[%emt 0:00:30]} 54. Nc4 {[%emt 0:00:27]} Nd5+ {[%emt 0:00:14]} 55. Kg3 {[%emt 0:01:13]} Rc8 {[%emt 0:00:38]} 56. Na3 {[%emt 0:00:19]} Rxc2 57. Nxc2 {[%emt 0:00:00]} Nb6 {[%emt 0:00:12]} 58. e4 {[%emt 0:00:34]} Nxa4 {[%emt 0:00:25]} 59. Nd4+ {[%emt 0:00:22]} Kd6 {[%emt 0:00:39]} 60. Nb3 {[%emt 0:00:18]} Nc3 {[%emt 0:00:11]} 61. Nxa5 {[%emt 0:00:08]} Nxb5 {[%emt 0:00:03]} 62. Nc4+ {[%emt 0:00:53]} Ke6 {[%emt 0:00:04]} 63. f4 {[%emt 0:00:46]} Nd4 {[%emt 0:01:21]} 64. Ne3 {[%emt 0:01:01]} Ne2+ {[%emt 0:01:19]} 65. Kf3 {[%emt 0:00:01]} Nd4+ {[%emt 0:00:11]} 66. Kf2 {[%emt 0:00:01]} Kf6 {[%emt 0:00:17]} 67. Nf5 {[%emt 0:00:24]} Ne6 {[%emt 0:00:18]} 68. Ke3 {[%emt 0:00:08]} Kg6 {[%emt 0:00:48]} 69. Ng3 {[%emt 0:00:29]} Nc5 {[%emt 0:00:52]} 70. Kd4 {[%emt 0:00:16]} Nd7 {[%emt 0:00:21]} 71. e5 {[%emt 0:00:41]} Nf8 {[%emt 0:01:35]} 72. Kd5 {[%emt 0:00:13]} Nd7 {[%emt 0:00:15]} 73. Kd6 {[%emt 0:00:41]} Nb6 {[%emt 0:00:08]} 74. Nh5 {[%emt 0:00:40]} Nc4+ {[%emt 0:00:33]} 75. Ke7 {[%emt 0:00:11]} Ne3 {[%emt 0:00:25]} 76. Nf6 {[%emt 0:00:58]} Nc4 {[%emt 0:01:12]} 77. Kf8 {[%emt 0:00:50]} Ne3 {[%emt 0:00:35]} 78. Kg8 {[%emt 0:00:32]} Nc4 {[%emt 0:00:58]} 79. Nd7 {[%emt 0:00:15]} h5 {[%emt 0:00:23]} 80. Nf8+ {[%emt 0:00:33]} 1-0

[Event "94th Paris-ch  2019"]
[Site "Paris"]
[Date "2019.07.11"]
[Round "6.9"]
[White "Dixit, Nikhil"]
[Black "Ojas Kulkarni"]
[Result "1-0"]
[ECO "B15"]
[WhiteElo "2318"]
[BlackElo "2251"]
[Annotator "ChessBase"]
[PlyCount "93"]
[EventDate "2019.07.07"]
[EventType "swiss"]
[EventCountry "FRA"]
[SourceTitle "playchess.com"]
[Source "ChessBase"]
[SourceQuality "1"]
[TimeControl "5400+30"]

1. e4 {[%emt 0:00:00]} c6 {[%emt 0:00:00]} 2. d4 {[%emt 0:00:17]} d5 {[%emt 0:00:00]} 3. Nd2 {[%emt 0:00:07]} dxe4 {[%emt 0:00:00]} 4. Nxe4 {[%emt 0:00:04]} Nf6 {[%emt 0:00:00]} 5. Nxf6+ {[%emt 0:02:20]} exf6 {[%emt 0:00:00]} 6. c3 {[%emt 0:01:24]} Bd6 {[%emt 0:00:02]} 7. Bd3 {[%emt 0:00:31]} O-O {[%emt 0:00:09]} 8. Qc2 {[%emt 0:00:41]} Re8+ {[%emt 0:00:04]} 9. Ne2 {[%emt 0:01:48]} h5 {[%emt 0:00:05]} 10. Be3 {[%emt 0:01:26]} Nd7 {[%emt 0:03:20]} 11. O-O-O {[%emt 0:01:05]} Nf8 {[%emt 0:00:17]} 12. h3 {[%emt 0:10:00]} h4 {[%emt 0:01:55]} 13. Rhg1 {[%emt 0:03:01]} Qa5 {[%emt 0:20:46]} 14. Kb1 {[%emt 0:08:04]} Be6 {[%emt 0:02:54]} 15. b3 {[%emt 0:03:15]} Qc7 {[%emt 0:00:07]} 16. g3 {[%emt 0:13:45]} Bd5 {[%emt 0:17:23]} 17. gxh4 {[%emt 0:20:15]} Bh2 {[%emt 0:03:32]} 18. Ng3 {[%emt 0:02:44]} Bf3 {[%emt 0:08:16]} 19. Nf5 {[%emt 0:06:18]} g6 {[%emt 0:04:25]} 20. Nh6+ {[%emt 0:05:18]} Kh7 {[%emt 0:00:16]} 21. Ng4 {[%emt 0:00:43]} Bxg1 {[%emt 0:10:06]} 22. Nxf6+ {[%emt 0:02:52]} Kh8 {[%emt 0:00:06]} 23. Rxg1 {[%emt 0:00:30]} Qh2 {[%emt 0:02:03]} 24. Qc1 {[%emt 0:00:52]} Re6 {[%emt 0:01:03]} 25. Bf4 {[%emt 0:02:09]} Qxh3 {[%emt 0:00:18]} 26. Be5 {[%emt 0:00:25]} Qxh4 {[%emt 0:06:24]} 27. Qe3 {[%emt 0:01:47]} Rxf6 {[%emt 0:07:55]} 28. Qxf3 {[%emt 0:00:47]} Nh7 {[%emt 0:00:04]} 29. Qh1 {[%emt 0:04:46]} Qxh1 {[%emt 0:07:16]} 30. Rxh1 {[%emt 0:00:12]} Kg8 {[%emt 0:00:08]} 31. Rxh7 {[%emt 0:00:19]} Kxh7 {[%emt 0:00:07]} 32. Bxf6 {[%emt 0:00:04]} Re8 {[%emt 0:00:04]} 33. Kc2 {[%emt 0:00:32]} Kh6 {[%emt 0:02:10]} 34. c4 {[%emt 0:00:41]} Re6 {[%emt 0:02:30]} 35. Be5 {[%emt 0:01:36]} f6 {[%emt 0:02:18]} 36. Bf4+ {[%emt 0:00:23]} Kg7 {[%emt 0:00:40]} 37. d5 {[%emt 0:00:43]} Re8 {[%emt 0:00:26]} 38. Kc3 {[%emt 0:01:56]} Rd8 {[%emt 0:00:18]} 39. Bc7 {[%emt 0:02:43]} Rd7 {[%emt 0:00:11]} 40. d6 {[%emt 0:00:06]} f5 {[%emt 0:00:38]} 41. Kd4 {[%emt 0:00:45]} Kf6 {[%emt 0:00:01]} 42. c5 {[%emt 0:00:51]} Rh7 {[%emt 0:00:11]} 43. Bd8+ {[%emt 0:01:04]} Ke6 {[%emt 0:00:16]} 44. Bc4+ {[%emt 0:00:06]} Kd7 {[%emt 0:00:05]} 45. Bg5 {[%emt 0:00:12]} b5 {[%emt 0:00:25]} 46. cxb6 {[%emt 0:00:34]} axb6 {[%emt 0:00:02]} 47. Ke5 {[%emt 0:00:09]} 1-0

[Event "94th Paris-ch  2019"]
[Site "Paris"]
[Date "2019.07.11"]
[Round "6.19"]
[White "Macon, Arthur"]
[Black "French, Max"]
[Result "1-0"]
[ECO "A14"]
[WhiteElo "2270"]
[BlackElo "2232"]
[Annotator "ChessBase"]
[PlyCount "132"]
[EventDate "2019.07.07"]
[EventType "swiss"]
[EventCountry "FRA"]
[SourceTitle "playchess.com"]
[Source "ChessBase"]
[SourceQuality "1"]
[TimeControl "5400+30"]

1. Nf3 {[%emt 0:00:45]} Nf6 {[%emt 0:00:00]} 2. g3 {[%emt 0:00:18]} e6 {[%emt 0:00:00]} 3. Bg2 {[%emt 0:02:27]} d5 {[%emt 0:00:00]} 4. O-O {[%emt 0:03:12]} Be7 {[%emt 0:00:00]} 5. b3 {[%emt 0:07:01]} O-O {[%emt 0:00:23]} 6. c4 {[%emt 0:00:16]} d4 {[%emt 0:00:04]} 7. e3 {[%emt 0:01:58]} c5 {[%emt 0:00:14]} 8. exd4 {[%emt 0:00:18]} cxd4 {[%emt 0:00:04]} 9. Re1 {[%emt 0:05:09]} Nc6 {[%emt 0:00:08]} 10. d3 {[%emt 0:00:59]} Re8 {[%emt 0:03:50]} 11. Ba3 {[%emt 0:04:54]} Bd6 {[%emt 0:11:01]} 12. Bxd6 {[%emt 0:06:10]} Qxd6 {[%emt 0:00:04]} 13. a3 {[%emt 0:00:22]} a5 {[%emt 0:00:23]} 14. Nbd2 {[%emt 0:00:38]} e5 {[%emt 0:00:29]} 15. Ng5 {[%emt 0:02:55]} h6 {[%emt 0:05:38]} 16. Nge4 {[%emt 0:00:49]} Nxe4 {[%emt 0:00:08]} 17. Nxe4 {[%emt 0:00:40]} Qc7 {[%emt 0:01:33]} 18. c5 {[%emt 0:01:12]} Bd7 {[%emt 0:11:49]} 19. Nd6 {[%emt 0:02:12]} Re7 {[%emt 0:00:30]} 20. b4 {[%emt 0:11:53]} axb4 {[%emt 0:04:26]} 21. axb4 {[%emt 0:00:21]} Rxa1 {[%emt 0:01:22]} 22. Qxa1 {[%emt 0:00:16]} Nxb4 {[%emt 0:00:34]} 23. Qa8+ {[%emt 0:00:42]} Kh7 {[%emt 0:00:13]} 24. Qf8 {[%emt 0:03:22]} Be6 {[%emt 0:07:28]} 25. Ne8 {[%emt 0:04:34]} Rxe8 {[%emt 0:00:25]} 26. Qxe8 {[%emt 0:00:04]} Qxc5 {[%emt 0:07:01]} 27. Be4+ {[%emt 0:02:59]} g6 {[%emt 0:02:54]} 28. Ra1 {[%emt 0:05:16]} Na6 {[%emt 0:15:46]} 29. Bxb7 {[%emt 0:05:04]} Nc7 {[%emt 0:00:04]} 30. Qc6 {[%emt 0:01:30]} Qxc6 {[%emt 0:01:44]} 31. Bxc6 {[%emt 0:00:12]} Kg7 {[%emt 0:02:30]} 32. Ra7 {[%emt 0:00:42]} Nd5 {[%emt 0:00:09]} 33. Bxd5 {[%emt 0:00:31]} Bxd5 {[%emt 0:00:04]} 34. Ra5 {[%emt 0:00:08]} Bb7 {[%emt 0:01:41]} 35. Rxe5 {[%emt 0:00:31]} Ba6 {[%emt 0:00:04]} 36. Rd5 {[%emt 0:00:10]} Bxd3 {[%emt 0:00:04]} 37. Rxd4 {[%emt 0:00:05]} Bf5 {[%emt 0:03:19]} 38. Kg2 {[%emt 0:01:33]} Be6 {[%emt 0:01:12]} 39. Kf3 {[%emt 0:00:34]} Kf6 {[%emt 0:00:14]} 40. Ke3 {[%emt 0:00:34]} Bb3 {[%emt 0:00:43]} 41. Rb4 {[%emt 0:00:24]} Ba2 {[%emt 0:00:21]} 42. Rb5 {[%emt 0:00:42]} Bc4 {[%emt 0:00:07]} 43. Rc5 {[%emt 0:00:11]} Bb3 {[%emt 0:00:06]} 44. Kd4 {[%emt 0:02:30]} Be6 {[%emt 0:01:21]} 45. f4 {[%emt 0:01:33]} Bd7 {[%emt 0:00:49]} 46. Kd5 {[%emt 0:02:15]} Be6+ {[%emt 0:00:07]} 47. Kd6 {[%emt 0:00:11]} h5 {[%emt 0:00:40]} 48. Re5 {[%emt 0:01:06]} Bf5 {[%emt 0:00:53]} 49. Kc7 {[%emt 0:01:31]} Be6 {[%emt 0:03:58]} 50. Kd8 {[%emt 0:00:31]} Bb3 {[%emt 0:01:47]} 51. Ke8 {[%emt 0:00:38]} Be6 {[%emt 0:00:07]} 52. Kf8 {[%emt 0:00:18]} Ba2 {[%emt 0:00:15]} 53. Re7 {[%emt 0:01:58]} Bb3 {[%emt 0:00:37]} 54. h3 {[%emt 0:01:51]} Be6 {[%emt 0:02:19]} 55. g4 {[%emt 0:00:32]} hxg4 {[%emt 0:00:08]} 56. hxg4 {[%emt 0:00:06]} g5 {[%emt 0:02:45]} 57. f5 {[%emt 0:01:46]} Bc4 {[%emt 0:00:49]} 58. Re3 {[%emt 0:01:32]} Bd5 {[%emt 0:01:04]} 59. Kg8 {[%emt 0:01:14]} Bc6 {[%emt 0:01:16]} 60. Kh7 {[%emt 0:01:16]} Ba4 {[%emt 0:00:12]} 61. Kh6 {[%emt 0:00:13]} Bd1 {[%emt 0:00:20]} 62. Kh5 {[%emt 0:00:10]} Bc2 {[%emt 0:00:12]} 63. Ra3 {[%emt 0:00:49]} Bxf5 {[%emt 0:01:47]} 64. gxf5 {[%emt 0:00:59]} Kxf5 {[%emt 0:00:05]} 65. Rf3+ {[%emt 0:00:11]} Ke4 {[%emt 0:00:06]} 66. Rxf7 {[%emt 0:00:06]} Kd5 {[%emt 0:00:13]} 1-0

[Event "94th Paris-ch  2019"]
[Site "Paris"]
[Date "2019.07.11"]
[Round "6.20"]
[White "Jeet, Jain"]
[Black "Lutard, Theo"]
[Result "1-0"]
[ECO "C11"]
[WhiteElo "2258"]
[BlackElo "2222"]
[Annotator "NA"]
[PlyCount "47"]
[EventDate "2019.07.07"]
[EventType "swiss"]
[EventCountry "FRA"]
[SourceTitle "playchess.com"]
[Source "ChessBase"]
[SourceQuality "1"]
[TimeControl "5400+30"]

1. e4 {[%emt 0:00:20]} e6 {[%emt 0:00:00]} 2. d4 {[%emt 0:00:16]} d5 {[%emt 0:00:03]} 3. Nc3 {[%emt 0:00:16]} Nf6 {[%emt 0:00:09]} 4. e5 {[%emt 0:01:01]} Nfd7 {[%emt 0:00:09]} 5. Nce2 {[%emt 0:00:51]} c5 {[%emt 0:00:22]} 6. f4 {[%emt 0:00:35]} Nc6 {[%emt 0:00:13]} 7. Nf3 {[%emt 0:00:46]} b5 {[%emt 0:00:57]} 8. c3 {[%emt 0:00:40]} b4 {[%emt 0:01:01]} 9. f5 {[%emt 0:11:40]} exf5 {[%emt 0:01:01]} 10. Nf4 {[%emt 0:00:28]} bxc3 {[%emt 0:00:39]} 11. bxc3 {[%emt 0:00:53]} Rb8 {[%emt 0:00:46]} 12. Kf2 {[%emt 0:15:18]} Nb6 {[%emt 0:18:18]} 13. Bb5 {[%emt 0:03:35]} Bb7 {[%emt 0:08:13]} 14. e6 {[%emt 0:05:08]} Bd6 {[%emt 0:22:13]} 15. Re1 {[%emt 0:01:46]} a6 {[%emt 0:25:33]} 16. exf7+ {[%emt 0:02:01]} Kxf7 {[%emt 0:00:10]} 17. Ne6 {[%emt 0:00:12]} Qc8 {[%emt 0:03:32]} 18. Bxc6 {[%emt 0:05:24]} Qxc6 {[%emt 0:01:03]} 19. dxc5 {[%emt 0:00:17]} Bxc5+ {[%emt 0:00:46]} 20. Nxc5 {[%emt 0:00:36]} Qxc5+ {[%emt 0:00:05]} 21. Be3 {[%emt 0:00:08]} Qd6 {[%emt 0:04:18]} 22. Qd4 {[%emt 0:00:34]} Nc4 {[%emt 0:02:16]} 23. Bf4 {[%emt 0:00:39]} Qb6 {[%emt 0:05:05]} 24. Ng5+ {[%emt 0:00:20]} 1-0

[Event "94th Paris-ch  2019"]
[Site "Paris"]
[Date "2019.07.11"]
[Round "6.21"]
[White "Materia, Marco"]
[Black "Smith, Matthieu"]
[Result "1-0"]
[ECO "E42"]
[WhiteElo "2243"]
[BlackElo "2208"]
[Annotator "NA"]
[PlyCount "49"]
[EventDate "2019.07.07"]
[EventType "swiss"]
[EventCountry "FRA"]
[SourceTitle "playchess.com"]
[Source "ChessBase"]
[SourceQuality "1"]
[TimeControl "5400+30"]

1. d4 {[%emt 0:00:00]} Nf6 {[%emt 0:04:10]} 2. c4 {[%emt 0:00:00]} e6 {[%emt 0:00:43]} 3. Nc3 {[%emt 0:00:00]} Bb4 {[%emt 0:00:00]} 4. e3 {[%emt 0:00:20]} c5 {[%emt 0:01:53]} 5. Nge2 {[%emt 0:01:01]} cxd4 {[%emt 0:06:34]} 6. exd4 {[%emt 0:00:33]} d5 {[%emt 0:00:50]} 7. c5 {[%emt 0:03:41]} O-O {[%emt 0:04:27]} 8. a3 {[%emt 0:04:08]} Bxc3+ {[%emt 0:01:43]} 9. Nxc3 {[%emt 0:00:54]} Nc6 {[%emt 0:00:34]} 10. Be2 {[%emt 0:01:26]} e5 {[%emt 0:09:55]} 11. dxe5 {[%emt 0:08:35]} Nxe5 {[%emt 0:00:15]} 12. Be3 {[%emt 0:01:50]} Be6 {[%emt 0:04:43]} 13. O-O {[%emt 0:06:01]} Nfg4 {[%emt 0:09:32]} 14. Bd4 {[%emt 0:04:26]} Qb8 {[%emt 0:15:05]} 15. f4 {[%emt 0:04:01]} Nc6 {[%emt 0:09:58]} 16. Bxg4 {[%emt 0:02:21]} Bxg4 {[%emt 0:02:42]} 17. Qxg4 {[%emt 0:01:10]} Nxd4 {[%emt 0:00:08]} 18. f5 {[%emt 0:03:04]} Nb3 {[%emt 0:01:44]} 19. f6 {[%emt 0:00:02]} g6 {[%emt 0:00:02]} 20. Qg5 {[%emt 0:00:05]} Nxc5 {[%emt 0:00:01]} 21. Qh6 {[%emt 0:00:01]} Ne6 {[%emt 0:00:01]} 22. Rae1 {[%emt 0:00:04]} Qc7 {[%emt 0:00:01]} 23. Nxd5 {[%emt 0:00:02]} Qc5+ {[%emt 0:00:01]} 24. Kh1 {[%emt 0:00:01]} Qxd5 {[%emt 0:00:02]} 25. Rxe6 {[%emt 0:00:01]} 1-0